[Event "Szansa Chess Open 2022"]
[Site "Warsaw"]
[Date "2022.09.18"]
[Round "6.21"]
[White "Alvarado, Carlos"]
[Black "Siekanska, Zuzanna"]
[Result "0-1"]
[ECO "C24"]
[WhiteElo "2108"]
[BlackElo "1898"]
[Annotator "TA"]
[PlyCount "71"]
[EventDate "2022.09.17"]
[EventCountry "POL"]
[SourceTitle "playchess.com"]
[Source "ChessBase"]
[SourceQuality "1"]
[TimeControl "900+10"]

{[%evp 10,71,0,0,13,-2,-2,0,-7,-15,0,0,0,-11,-13,-7,19,20,30,-26,-11,-8,59,56,153,126,112,5,6,9,51,3,4,0,28,0,0,-29,-18,-19,4,4,24,18,95,111,1425,1388,1360,1361,2264,1727,2179,1813,5310,5310,2053,3126,5302,5302,29983,29984,29984,29985]} 1. e4 {[%emt 0:01:42] ChessBase II} e5 {[%emt 0:00:00]} 2. Bc4 {[%emt 0:00:04]} Nf6 {[%emt 0:00:11]} 3. d3 {[%emt 0:00:02]} Nc6 {[%emt 0:00:17]} 4. Nc3 {[%emt 0:00:04]} Bb4 {[%emt 0:00:09]} 5. Bd2 {[%emt 0:00:09]} O-O {[%emt 0:00:07]} 6. Nf3 {[%emt 0:00:07]} d6 {[%emt 0:00:12] C28: Vienna Game: 2...Nf6 3 Bc4 Nc6.} 7. h3 {[%emt 0:00:04]} Na5 {[%emt 0:00:13]} 8. Bb3 {[%emt 0:00:02]} Nxb3 {[%emt 0:00:04] The position is equal.} 9. axb3 {[%emt 0:00:03]} Re8 {[%emt 0:00:20]} 10. O-O {[%emt 0:00:03]} c6 {[%emt 0:00:48]} 11. Bg5 {[%emt 0:00:26]} h6 {[%emt 0:00:20]} 12. Bh4 {[%emt 0:00:02]} d5 {[%emt 0:00:07] [#]} 13. exd5 $146 {[%emt 0:01:04]} ({Predecessor:} 13. Bxf6 gxf6 14. Qc1 Kh7 15. Ne2 f5 16. exd5 cxd5 17. c3 Bd6 18. Re1 e4 19. dxe4 fxe4 {½-½ (32) Ralle,P (2118)-Dagonia,S (1898) Issy les Moulineaux 2010 EXT 2011 [ChessBase II]}) 13... cxd5 {[%emt 0:00:02]} 14. Bxf6 {[%emt 0:00:03]} (14. d4 $142 e4 15. Ne5) 14... gxf6 $11 {[%emt 0:00:37]} 15. Nh2 {[%emt 0:01:53]} Kh7 {[%emt 0:00:38]} ({Better is} 15... f5 $11) 16. Qh5 {[%emt 0:00:07]} Rf8 {[%emt 0:02:00]} (16... Rg8 $1 $14) 17. Ng4 {[%emt 0:00:06]} Bxg4 {[%emt 0:00:03]} 18. hxg4 {[%emt 0:00:15]} (18. Qxg4 $16 a5 19. Qf3) 18... Bxc3 {[%emt 0:00:21]} 19. bxc3 {[%emt 0:00:02]} Qc7 {[%emt 0:00:02]} 20. Qf5+ {[%emt 0:00:40]} (20. f4 $14) 20... Kg7 {[%emt 0:00:07]} 21. c4 $36 {[%emt 0:00:09][%mdl 2048] White is more active.} dxc4 {[%emt 0:00:21]} 22. dxc4 {[%emt 0:00:01][%cal Bd3c4,Bc4d5,Bd5d6][%mdl 32]} Rfd8 {[%emt 0:00:25]} 23. Rad1 {[%emt 0:01:26]} Rxd1 {[%emt 0:01:58]} 24. Rxd1 {[%emt 0:00:01][%mdl 4096] Endgame KQR-KQR} Rd8 {[%emt 0:00:02]} 25. Rd5 {[%emt 0:00:06]} a6 {[%emt 0:00:34]} 26. Qd3 {[%emt 0:00:04]} Rxd5 {[%emt 0:00:15]} (26... Ra8 $11) 27. cxd5 {[%emt 0:00:03] Threatens to win with d6. KQ-KQ} b5 $2 {[%emt 0:00:07][%mdl 8192] [#] Black cannot hold the game after this.} (27... Qd7 $16) 28. d6 $1 $18 {[%emt 0:00:10]} Qd7 {[%emt 0:00:03]} 29. c4 {[%emt 0:00:09]} bxc4 {[%emt 0:00:12]} 30. bxc4 {[%emt 0:00:01][%cal Bb3c4,Bc4c5][%mdl 32]} e4 {[%emt 0:00:28]} 31. Qd5 {[%emt 0:00:03]} a5 {[%emt 0:04:11]} 32. c5 {[%emt 0:00:03] [#] Threatening mate with c6.} e3 {[%emt 0:00:52]} 33. fxe3 {[%emt 0:00:05]} Qe8 {[%emt 0:00:38]} 34. Kf2 {[%emt 0:00:38] d7 would kill now.} Qa4 {[%emt 0:00:50]} 35. d7 {[%emt 0:01:12]} Qc2+ {[%emt 0:00:08]} 36. Kg3 {[%emt 0:00:05][%mdl 32768] Weighted Error Value: White=0.19 (very precise) /Black=0.52. Sensor Board Error (Ke4/e5)?} 0-1

[Event "Szansa Chess Open 2022"]
[Site "Warsaw"]
[Date "2022.09.18"]
[Round "6.22"]
[White "Derylo, Kamil"]
[Black "Vasynda, Oleksandr"]
[Result "1-0"]
[ECO "D00"]
[WhiteElo "2143"]
[BlackElo "1866"]
[Annotator "TA"]
[PlyCount "127"]
[EventDate "2022.09.17"]
[EventCountry "POL"]
[SourceTitle "playchess.com"]
[Source "ChessBase"]
[SourceQuality "1"]
[TimeControl "900+10"]

{[%evp 9,126,-1,1,-1,-2,-5,5,-23,-20,-13,-10,-32,-8,-37,0,0,0,0,0,0,0,0,1,0,0,-15,0,0,0,-38,-38,-41,0,-4,24,53,137,62,227,225,233,231,243,229,266,219,633,615,617,605,570,601,898,856,952,790,788,767,776,778,788,752,726,702,993,972,882,856,4808,3198,6609,6368,4718,3278,6825,8679,29955,1541,29958,29957,4922,4922,29974,29976,29977,29978,29981,29979,29974,2840,2086,1059,2014,1992,29980,29981,29980,29980,29986,29984,29988,29986,29986,29987,29987,29988,29989,29990,29995,29990,29995,29996,29996,29997,29997,29998,29998,29999,29999]} 1. d4 {[%emt 0:00:03]} d5 {[%emt 0:00:01]} 2. Bg5 {[%emt 0:00:02]} Nf6 {[%emt 0:00:07]} 3. Bxf6 {[%emt 0:00:02]} gxf6 {[%emt 0:00:02]} 4. e3 {[%emt 0:00:03]} e6 {[%emt 0:00:07]} 5. Nd2 {[%emt 0:00:19]} c5 $1 {[%emt 0:00:04]} 6. dxc5 {[%emt 0:00:04] D00: 1 d4 d5: Unusual lines.} Bxc5 {[%emt 0:00:03]} 7. Ngf3 {[%emt 0:00:07]} Nc6 {[%emt 0:00:06]} 8. c4 {[%emt 0:01:21] The position is equal.} d4 {[%emt 0:01:45]} 9. exd4 {[%emt 0:00:01]} Nxd4 {[%emt 0:00:18]} 10. Be2 {[%emt 0:00:01] [#]} b6 $146 {[%emt 0:02:49]} ({Predecessor:} 10... Nxe2 11. Qxe2 b6 12. O-O Bb7 13. Ne4 O-O 14. Rad1 Qe7 15. Rd7 Bxe4 16. Rxe7 Bxf3 17. Qxf3 Bxe7 {1-0 (28) Djordjevic,V (2350)-Tikhonov,V (2200) Chess.com INT 2020}) 11. O-O {[%emt 0:00:32]} ({Don't play} 11. b4 Bxb4 12. Rb1 (12. Qa4+ $2 b5 $19) 12... Ba5 $17) 11... Bb7 {[%emt 0:00:02]} 12. Nxd4 $1 {[%emt 0:02:11]} Bxd4 {[%emt 0:02:19] This bishop pair is nice.} 13. Qc2 {[%emt 0:00:01]} f5 {[%emt 0:02:19]} 14. Bf3 {[%emt 0:00:13]} Qd7 {[%emt 0:02:23]} 15. Rad1 {[%emt 0:01:13]} Rg8 {[%emt 0:00:44]} 16. Bxb7 {[%emt 0:04:05]} Qxb7 {[%emt 0:00:02][%csl Gg8][%cal Rb7g2]} 17. Qa4+ {[%emt 0:00:04]} Ke7 {[%emt 0:00:35][%csl Gg8][%cal Rb7g2]} 18. Qa3+ {[%emt 0:00:04]} Bc5 {[%emt 0:00:18][%csl Gg8][%cal Rb7g2]} 19. Qf3 {[%emt 0:00:58]} Qxf3 {[%emt 0:00:48]} 20. Nxf3 {[%emt 0:00:01]} Rg7 {[%emt 0:02:09]} 21. Ne5 {[%emt 0:00:52][%cal Ob2b4]} Rag8 {[%emt 0:00:04]} 22. g3 {[%emt 0:00:06][%cal Ob2b4] And now b4! would win.} f4 {[%emt 0:00:35]} (22... Kf6 $14 23. Rfe1 f4) 23. Kg2 {[%emt 0:00:02]} (23. Nc6+ $16 Kf6 24. b4) 23... f5 $2 {[%emt 0:00:42] [#] A mistake that costs the game.} (23... Kf6 $14 24. Nd7+ Ke7) 24. b4 $1 $18 {[%emt 0:01:23][%cal Bb2b4,Bb4c5][%mdl 32]} Bd6 {[%emt 0:00:37]} (24... f3+ $2 25. Kxf3 Kf6 26. Nd7+ (26. bxc5 Kxe5 27. Rfe1+ Kf6 $18) 26... Rxd7 27. Rxd7 $18) 25. Nc6+ {[%emt 0:00:07]} Kd7 {[%emt 0:00:01]} 26. Nxa7 {[%emt 0:00:14] aiming for Nb5.} fxg3 {[%emt 0:00:02]} 27. hxg3 {[%emt 0:00:10] Hoping for Nb5.} Rd8 $2 {[%emt 0:00:02]} (27... Ke7 28. Nc6+ Kd7) 28. c5 {[%emt 0:00:17]} bxc5 {[%emt 0:00:09]} 29. bxc5 {[%emt 0:00:02]} Ke8 {[%emt 0:00:08]} 30. Nc6 {[%emt 0:00:02]} ({Not} 30. cxd6 Rxa7 31. Rh1 Ra6 $16) ({Weaker is} 30. Rxd6 Rxd6 31. cxd6 Rxa7 $16) 30... Rc8 {[%emt 0:00:03]} 31. Rxd6 {[%emt 0:00:03]} Rgc7 {[%emt 0:00:01]} 32. Nd4 {[%emt 0:00:41]} Rxc5 {[%emt 0:00:06]} 33. Re1 {[%emt 0:00:29]} e5 {[%emt 0:00:06]} 34. Re6+ {[%emt 0:00:16]} Kf7 {[%emt 0:00:02]} 35. R6xe5 {[%emt 0:00:04]} Rxe5 {[%emt 0:00:04]} 36. Rxe5 {[%emt 0:00:02][%mdl 4096] Endgame KRN-KR} Ra8 {[%emt 0:00:01]} 37. Rxf5+ {[%emt 0:01:17]} Kg6 {[%emt 0:00:02]} 38. Rb5 {[%emt 0:00:16]} Rxa2 {[%emt 0:00:03]} 39. g4 {[%emt 0:00:32]} Ra4 {[%emt 0:00:04]} 40. Rd5 {[%emt 0:00:02]} Kf6 {[%emt 0:00:20]} 41. Kg3 {[%emt 0:00:06]} Ra2 {[%emt 0:00:06]} 42. Rf5+ {[%emt 0:00:11]} Kg6 {[%emt 0:00:02]} 43. Rb5 {[%emt 0:00:14]} (43. Nc6 $142 Ra3+ 44. f3 Ra6 45. Ne7+ Kg7 46. Rh5 Ra7 47. Nf5+ Kf6 48. f4) 43... Rd2 {[%emt 0:00:02]} 44. Rb6+ {[%emt 0:00:04]} Kf7 {[%emt 0:00:04]} 45. Nf3 {[%emt 0:00:15]} Rd3 {[%emt 0:00:09]} 46. Kf4 {[%emt 0:00:05]} Ra3 {[%emt 0:00:01]} 47. Ne5+ {[%emt 0:00:03]} Kg7 {[%emt 0:00:09]} 48. f3 {[%emt 0:00:05][%cal Bf2f3,Bf3f4][%mdl 32]} Ra8 {[%emt 0:00:04]} 49. Rb7+ {[%emt 0:00:08]} (49. Kf5 $142 Ra7 50. Kg5 Ra5 51. Rb7+ Kg8 52. f4 Rd5 53. Kf6 Rd6+ 54. Kf5) 49... Kf6 {[%emt 0:00:03]} 50. g5+ {[%emt 0:00:12]} Ke6 {[%emt 0:00:02]} 51. Rb6+ {[%emt 0:00:10]} Ke7 {[%emt 0:00:09]} 52. Kg4 {[%emt 0:00:04] White mates.} Ra1 {[%emt 0:00:05]} 53. f4 {[%emt 0:00:04]} Kf8 {[%emt 0:00:06]} 54. Kf5 {[%emt 0:00:04]} Ra7 {[%emt 0:00:03]} 55. Kf6 {[%emt 0:00:11][%cal Rb6b8]} Ra8 {[%emt 0:00:00] [#]} 56. Rb8+ $3 {[%emt 0:00:24][%mdl 512]} Rxb8 {[%emt 0:00:03] KR-KN} 57. Nd7+ {[%emt 0:00:02]} Kg8 {[%emt 0:00:04]} 58. Nxb8 {[%emt 0:00:02] KN-KP} Kh8 {[%emt 0:00:03]} 59. Ke7 {[%emt 0:00:06]} h5 {[%emt 0:00:05]} 60. Kf7 {[%emt 0:00:24]} h4 {[%emt 0:00:06]} 61. g6 {[%emt 0:00:01]} h3 {[%emt 0:00:00]} 62. g7+ {[%emt 0:00:01]} Kh7 {[%emt 0:00:01]} 63. g8=Q+ {[%emt 0:00:02]} Kh6 {[%emt 0:00:01]} 64. Qg6# {[%emt 0:00:02] Weighted Error Value: White=0.12 (very precise) /Black=0.45} 1-0

[Event "Szansa Chess Open 2022"]
[Site "Warsaw"]
[Date "2022.09.18"]
[Round "6.23"]
[White "Janeczko, Jakub"]
[Black "Tsiapko, Andrii"]
[Result "1-0"]
[ECO "B20"]
[WhiteElo "2159"]
[BlackElo "1590"]
[Annotator "TA"]
[PlyCount "43"]
[EventDate "2022.09.17"]
[EventCountry "POL"]
[SourceTitle "playchess.com"]
[Source "ChessBase"]
[SourceQuality "1"]
[TimeControl "900+10"]

{[%evp 19,43,23,14,0,30,29,53,43,56,58,82,68,71,75,107,85,203,180,222,215,324,324,428,404,1233,1206]} 1. e4 {[%emt 0:00:03]} c5 {[%emt 0:00:04]} 2. d3 {[%emt 0:00:01]} Nc6 {[%emt 0:00:06]} 3. g3 {[%emt 0:00:02]} g6 {[%emt 0:00:08]} 4. Bg2 {[%emt 0:00:02]} Bg7 {[%emt 0:00:04]} 5. f4 {[%emt 0:00:01]} d6 {[%emt 0:00:51]} 6. Nf3 {[%emt 0:00:02]} e6 {[%emt 0:00:20]} 7. O-O {[%emt 0:00:04]} Nge7 {[%emt 0:00:03]} 8. c3 {[%emt 0:00:03]} O-O {[%emt 0:00:43]} 9. Be3 {[%emt 0:00:04]} b6 {[%emt 0:01:49]} 10. Na3 {[%emt 0:00:07]} Bb7 {[%emt 0:00:22]} 11. Nc2 {[%emt 0:00:02] B20: Sicilian: Unusual White 2nd moves.} d5 {[%emt 0:02:19]} 12. e5 {[%emt 0:00:02]} Nf5 {[%emt 0:00:10]} 13. Bf2 $1 {[%emt 0:00:02][%cal Be3f2,Bf2h4,Bh4f6][%mdl 32] White is slightly better.} h5 {[%emt 0:00:45]} 14. h3 {[%emt 0:00:10][%cal Bh2h3,Bh3g4][%mdl 32]} Qc7 {[%emt 0:01:52] [#]} 15. g4 $146 {[%emt 0:00:05]} ({Predecessor:} 15. Qd2 Rfd8 16. Rfe1 Bf8 17. Qe2 b5 18. Nd2 a5 19. Bf3 b4 20. g4 hxg4 21. hxg4 {1-0 (44) Zhanbai Uulu,Z (1742)-Abo Hazeem,M (1929) Sharjah 2013}) 15... hxg4 {[%emt 0:00:03]} 16. hxg4 {[%emt 0:00:02]} Nfe7 {[%emt 0:00:20]} 17. Qe2 {[%emt 0:00:36]} Rfd8 {[%emt 0:00:49]} (17... Rae8 $16 {keeps fighting.}) 18. Bh4 $18 {[%emt 0:00:03]} d4 {[%emt 0:02:51] [#]} 19. c4 $1 {[%emt 0:00:02]} Re8 {[%emt 0:00:33]} (19... b5 $142) 20. Bf6 {[%emt 0:00:05] Threatens to win with Ng5.} Kf8 {[%emt 0:01:48]} (20... Bxf6 $2 21. exf6 Qxf4 22. Nd2 $18 (22. fxe7 Qxg4 23. Nfxd4 Qxe2 $16)) 21. Ng5 {[%emt 0:00:06]} Kg8 {[%emt 0:02:03]} (21... Reb8 $142 22. Qe1 Bxf6) 22. Qf2 {[%emt 0:00:07] Black did not feel at home in the position after the opening.  Weighted Error Value: White=0.04 (flawless) /Black=0.51} 1-0

[Event "Szansa Chess Open 2022"]
[Site "Warsaw"]
[Date "2022.09.18"]
[Round "7"]
[White "Nasuta, Grzegorz"]
[Black "Gumularz, Szymon"]
[Result "1-0"]
[ECO "C41"]
[WhiteElo "2531"]
[BlackElo "2532"]
[Annotator "ChessBase"]
[PlyCount "63"]
[EventDate "2022.09.17"]
[EventCountry "POL"]
[SourceTitle "playchess.com"]
[Source "ChessBase"]
[SourceQuality "1"]
[TimeControl "900+10"]

1. e4 {[%emt 0:00:01]} e5 {[%emt 0:00:03]} 2. Nf3 {[%emt 0:00:01]} d6 {[%emt 0:00:01]} 3. d4 {[%emt 0:00:04]} Nd7 {[%emt 0:00:09]} 4. Nc3 {[%emt 0:00:11]} Ngf6 {[%emt 0:00:03]} 5. Rg1 {[%emt 0:00:01]} c6 {[%emt 0:00:49]} 6. g4 {[%emt 0:00:03]} h6 {[%emt 0:00:02]} 7. h4 {[%emt 0:00:20]} exd4 {[%emt 0:00:01]} 8. Nxd4 {[%emt 0:00:03]} Nc5 {[%emt 0:00:07]} 9. Qe2 {[%emt 0:00:35]} g6 {[%emt 0:01:01]} 10. g5 {[%emt 0:02:21]} hxg5 {[%emt 0:00:03]} 11. Bxg5 {[%emt 0:00:06]} Be7 {[%emt 0:00:10]} 12. O-O-O {[%emt 0:00:48]} Qc7 {[%emt 0:00:04]} 13. f4 {[%emt 0:02:54]} Nh5 {[%emt 0:00:45]} 14. f5 {[%emt 0:01:20]} Bxg5+ {[%emt 0:00:26]} 15. Rxg5 {[%emt 0:00:01]} Bd7 {[%emt 0:00:20]} 16. fxg6 {[%emt 0:02:23]} fxg6 {[%emt 0:00:01]} 17. e5 {[%emt 0:00:01]} d5 {[%emt 0:00:54]} 18. e6 {[%emt 0:00:21]} Bc8 {[%emt 0:00:01]} 19. Rxg6 {[%emt 0:00:49]} Nf4 {[%emt 0:00:25]} 20. Qg4 {[%emt 0:00:02]} Qh7 {[%emt 0:00:32]} 21. Rg7 {[%emt 0:01:53]} Qh6 {[%emt 0:01:44]} 22. Nf5 {[%emt 0:00:01]} Ne2+ {[%emt 0:00:09]} 23. Kb1 {[%emt 0:00:01]} Nxc3+ {[%emt 0:00:01]} 24. bxc3 {[%emt 0:00:02]} Qxe6 {[%emt 0:00:02]} 25. Qg5 {[%emt 0:00:03]} Ne4 {[%emt 0:00:20]} 26. Re7+ {[%emt 0:02:06]} Kd8 {[%emt 0:00:01]} 27. Qf4 {[%emt 0:00:01]} Qxe7 {[%emt 0:01:27]} 28. Nxe7 {[%emt 0:00:02]} Kxe7 {[%emt 0:00:01]} 29. Qe5+ {[%emt 0:00:03]} Be6 {[%emt 0:00:01]} 30. Bh3 {[%emt 0:00:14]} Nc5 {[%emt 0:01:23]} 31. Bxe6 {[%emt 0:00:11]} Nxe6 {[%emt 0:00:02]} 32. Re1 {[%emt 0:00:01]} 1-0

[Event "Szansa Chess Open 2022"]
[Site "Warsaw"]
[Date "2022.09.18"]
[Round "7"]
[White "Jakubowski, Krzysztof"]
[Black "Lewicki, Miroslaw"]
[Result "1/2-1/2"]
[ECO "B90"]
[WhiteElo "2466"]
[BlackElo "2336"]
[Annotator "ChessBase"]
[PlyCount "78"]
[EventDate "2022.09.17"]
[EventCountry "POL"]
[SourceTitle "playchess.com"]
[Source "ChessBase"]
[SourceQuality "1"]
[TimeControl "900+10"]

1. e4 {[%emt 0:00:01]} c5 {[%emt 0:00:02]} 2. Nf3 {[%emt 0:00:02]} d6 {[%emt 0:00:01]} 3. d4 {[%emt 0:00:02]} cxd4 {[%emt 0:00:02]} 4. Nxd4 {[%emt 0:00:02]} Nf6 {[%emt 0:00:07]} 5. Nc3 {[%emt 0:00:03]} a6 {[%emt 0:00:02]} 6. Bd3 {[%emt 0:00:06]} g6 {[%emt 0:00:14]} 7. f3 {[%emt 0:00:03]} Bg7 {[%emt 0:00:02]} 8. Be3 {[%emt 0:00:02]} Nc6 {[%emt 0:00:07]} 9. Qd2 {[%emt 0:00:09]} O-O {[%emt 0:02:38]} 10. O-O-O {[%emt 0:00:05]} Nxd4 {[%emt 0:00:05]} 11. Bxd4 {[%emt 0:00:03]} b5 {[%emt 0:00:02]} 12. h4 {[%emt 0:01:23]} e5 {[%emt 0:00:24]} 13. Be3 {[%emt 0:00:39]} Be6 {[%emt 0:00:37]} 14. Be2 {[%emt 0:01:10]} Qa5 {[%emt 0:01:37]} 15. Qxd6 {[%emt 0:01:04]} Bxa2 {[%emt 0:01:52]} 16. g4 {[%emt 0:00:40]} Rab8 {[%emt 0:01:49]} 17. Nxa2 {[%emt 0:02:54]} Qxa2 {[%emt 0:00:05]} 18. Qa3 {[%emt 0:00:02]} Qxa3 {[%emt 0:00:18]} 19. bxa3 {[%emt 0:00:02]} Rfc8 {[%emt 0:00:06]} 20. Kb2 {[%emt 0:01:43]} Bf8 {[%emt 0:01:25]} 21. Rd3 {[%emt 0:01:08]} h5 {[%emt 0:00:05]} 22. Bg5 {[%emt 0:00:49]} Ne8 {[%emt 0:01:23]} 23. gxh5 {[%emt 0:00:08]} gxh5 {[%emt 0:00:35]} 24. Rg1 {[%emt 0:00:52]} Kh8 {[%emt 0:00:30]} 25. Rd7 {[%emt 0:01:36]} b4 {[%emt 0:00:29]} 26. a4 {[%emt 0:00:16]} Bc5 {[%emt 0:00:10]} 27. Rgd1 {[%emt 0:00:29]} f6 {[%emt 0:00:06]} 28. Bxa6 {[%emt 0:00:11]} fxg5 {[%emt 0:00:52]} 29. Bxc8 {[%emt 0:00:11]} Rxc8 {[%emt 0:00:33]} 30. hxg5 {[%emt 0:00:43]} Bd4+ {[%emt 0:00:36]} 31. Kb3 {[%emt 0:00:17]} Ng7 {[%emt 0:00:28]} 32. g6 {[%emt 0:00:18]} Ne6 {[%emt 0:00:50]} 33. Rh7+ {[%emt 0:00:13]} Kg8 {[%emt 0:00:01]} 34. Kxb4 {[%emt 0:00:53]} Rb8+ {[%emt 0:00:47]} 35. Kc4 {[%emt 0:00:05]} Rc8+ {[%emt 0:00:03]} 36. Kb5 {[%emt 0:00:11]} Rb8+ {[%emt 0:00:41]} 37. Kc4 {[%emt 0:00:29]} Rc8+ {[%emt 0:00:05]} 38. Kb5 {[%emt 0:00:09]} Rb8+ {[%emt 0:00:02]} 39. Kc4 {[%emt 0:00:05]} Rc8+ {[%emt 0:00:02]} 1/2-1/2

[Event "Szansa Chess Open 2022"]
[Site "Warsaw"]
[Date "2022.09.18"]
[Round "7"]
[White "Jarmula, Lukasz"]
[Black "Siekanska, Maria"]
[Result "0-1"]
[ECO "D32"]
[WhiteElo "2457"]
[BlackElo "2029"]
[Annotator "ChessBase"]
[PlyCount "120"]
[EventDate "2022.09.17"]
[EventCountry "POL"]
[SourceTitle "playchess.com"]
[Source "ChessBase"]
[SourceQuality "1"]
[TimeControl "900+10"]

1. d4 {[%emt 0:00:14]} d5 {[%emt 0:00:01]} 2. c4 {[%emt 0:00:02]} e6 {[%emt 0:00:01]} 3. Nc3 {[%emt 0:00:02]} c5 {[%emt 0:00:02]} 4. cxd5 {[%emt 0:00:03]} exd5 {[%emt 0:00:01]} 5. Nf3 {[%emt 0:00:03]} Nc6 {[%emt 0:00:01]} 6. dxc5 {[%emt 0:00:04]} d4 {[%emt 0:00:02]} 7. Na4 {[%emt 0:00:01]} Bxc5 {[%emt 0:00:14]} 8. Nxc5 {[%emt 0:00:02]} Qa5+ {[%emt 0:00:02]} 9. Bd2 {[%emt 0:00:02]} Qxc5 {[%emt 0:00:01]} 10. Rc1 {[%emt 0:00:13]} Qb6 {[%emt 0:00:22]} 11. e3 {[%emt 0:00:13]} Nf6 {[%emt 0:00:28]} 12. Bc4 {[%emt 0:00:18]} O-O {[%emt 0:00:22]} 13. O-O {[%emt 0:01:18]} Bg4 {[%emt 0:00:26]} 14. exd4 {[%emt 0:03:31]} Nxd4 {[%emt 0:01:41]} 15. Be3 {[%emt 0:00:03]} Bxf3 {[%emt 0:00:05]} 16. Bxd4 {[%emt 0:00:08]} Bxd1 {[%emt 0:00:05]} 17. Bxb6 {[%emt 0:00:02]} axb6 {[%emt 0:01:08]} 18. Rfxd1 {[%emt 0:00:03]} Rfd8 {[%emt 0:00:02]} 19. f3 {[%emt 0:00:47]} Kf8 {[%emt 0:00:11]} 20. Bb3 {[%emt 0:00:21]} Rac8 {[%emt 0:00:15]} 21. Rxc8 {[%emt 0:00:28]} Rxc8 {[%emt 0:00:02]} 22. Kf2 {[%emt 0:00:09]} Ke7 {[%emt 0:00:13]} 23. Re1+ {[%emt 0:00:06]} Kf8 {[%emt 0:00:40]} 24. Rd1 {[%emt 0:00:18]} Rc7 {[%emt 0:00:36]} 25. g4 {[%emt 0:02:20]} h6 {[%emt 0:00:31]} 26. h4 {[%emt 0:00:12]} Rd7 {[%emt 0:00:58]} 27. Rc1 {[%emt 0:00:38]} Ke7 {[%emt 0:00:39]} 28. Re1+ {[%emt 0:01:00]} Kd8 {[%emt 0:01:59]} 29. Re5 {[%emt 0:01:10]} Re7 {[%emt 0:02:29]} 30. Rf5 {[%emt 0:00:20]} Ke8 {[%emt 0:00:54]} 31. Rb5 {[%emt 0:00:35]} Nd7 {[%emt 0:00:05]} 32. Bd5 {[%emt 0:00:14]} Nf6 {[%emt 0:00:44]} 33. Bb3 {[%emt 0:01:05]} Nd7 {[%emt 0:00:02]} 34. Ba4 {[%emt 0:00:20]} Kd8 {[%emt 0:01:05]} 35. Rd5 {[%emt 0:00:08]} Kc7 {[%emt 0:00:02]} 36. b4 {[%emt 0:00:29]} Ne5 {[%emt 0:00:27]} 37. Bb3 {[%emt 0:00:12]} f6 {[%emt 0:00:28]} 38. Kg3 {[%emt 0:00:15]} Rd7 {[%emt 0:00:09]} 39. h5 {[%emt 0:00:59]} Nc6 {[%emt 0:00:30]} 40. a3 {[%emt 0:00:17]} Nd4 {[%emt 0:00:13]} 41. Rxd7+ {[%emt 0:00:31]} Kxd7 {[%emt 0:00:01]} 42. Bc4 {[%emt 0:01:06]} Nc2 {[%emt 0:00:37]} 43. Kf4 {[%emt 0:00:27]} Nxa3 {[%emt 0:00:16]} 44. Bd3 {[%emt 0:00:15]} b5 {[%emt 0:00:15]} 45. Kf5 {[%emt 0:00:43]} Ke7 {[%emt 0:00:01]} 46. Ke4 {[%emt 0:00:21]} Kd6 {[%emt 0:00:14]} 47. Kd4 {[%emt 0:00:08]} Nc4 {[%emt 0:01:01]} 48. f4 {[%emt 0:00:02]} Nb6 {[%emt 0:00:11]} 49. Be4 {[%emt 0:00:03]} Nc8 {[%emt 0:00:40]} 50. Bxb7 {[%emt 0:00:07]} Ne7 {[%emt 0:00:01]} 51. Ba6 {[%emt 0:00:29]} Kc6 {[%emt 0:00:24]} 52. g5 {[%emt 0:00:33]} hxg5 {[%emt 0:00:17]} 53. fxg5 {[%emt 0:00:05]} fxg5 {[%emt 0:00:01]} 54. Ke5 {[%emt 0:00:13]} Kb6 {[%emt 0:00:16]} 55. Bc8 {[%emt 0:00:15]} Nxc8 {[%emt 0:00:08]} 56. Kf5 {[%emt 0:00:07]} Nd6+ {[%emt 0:00:25]} 57. Kxg5 {[%emt 0:00:09]} Kc6 {[%emt 0:00:10]} 58. Kg6 {[%emt 0:00:03]} Ne8 {[%emt 0:00:13]} 59. Kf7 {[%emt 0:00:14]} Nf6 {[%emt 0:00:06]} 60. Kg6 {[%emt 0:00:09]} Nxh5 {[%emt 0:00:02]} 0-1

[Event "Szansa Chess Open 2022"]
[Site "Warsaw"]
[Date "2022.09.18"]
[Round "7"]
[White "Nguyen, Piotr"]
[Black "Golecki, Jan"]
[Result "1-0"]
[ECO "A13"]
[WhiteElo "2421"]
[BlackElo "2193"]
[Annotator "ChessBase"]
[PlyCount "76"]
[EventDate "2022.09.17"]
[EventCountry "POL"]
[SourceTitle "playchess.com"]
[Source "ChessBase"]
[SourceQuality "1"]
[TimeControl "900+10"]

1. c4 {[%emt 0:00:01]} e6 {[%emt 0:00:12]} 2. g3 {[%emt 0:00:02]} d5 {[%emt 0:00:03]} 3. Bg2 {[%emt 0:00:02]} c5 {[%emt 0:00:02]} 4. Nf3 {[%emt 0:00:05]} Nc6 {[%emt 0:00:02]} 5. cxd5 {[%emt 0:00:06]} exd5 {[%emt 0:00:03]} 6. d4 {[%emt 0:00:02]} Nf6 {[%emt 0:00:45]} 7. O-O {[%emt 0:00:03]} c4 {[%emt 0:01:05]} 8. b3 {[%emt 0:00:04]} cxb3 {[%emt 0:00:15]} 9. Qxb3 {[%emt 0:00:02]} Qb6 {[%emt 0:00:37]} 10. Qxb6 {[%emt 0:00:45]} axb6 {[%emt 0:00:02]} 11. Nc3 {[%emt 0:00:02]} Bb4 {[%emt 0:00:02]} 12. Nb5 {[%emt 0:00:15]} Ra5 {[%emt 0:01:09]} 13. a4 {[%emt 0:00:31]} Bd7 {[%emt 0:00:01]} 14. Bf4 {[%emt 0:00:55]} O-O {[%emt 0:00:08]} 15. Ne5 {[%emt 0:00:51]} Nxe5 {[%emt 0:01:42]} 16. dxe5 {[%emt 0:00:16]} Ne4 {[%emt 0:00:27]} 17. Rfd1 {[%emt 0:02:42]} Bxb5 {[%emt 0:00:09]} 18. Bxe4 {[%emt 0:00:04]} Bxa4 {[%emt 0:01:50]} 19. Rxd5 {[%emt 0:00:09]} Bc6 {[%emt 0:00:02]} 20. Rdxa5 {[%emt 0:01:17]} bxa5 {[%emt 0:00:02]} 21. Bxc6 {[%emt 0:01:00]} bxc6 22. Rc1 {[%emt 0:00:06]} Rc8 {[%emt 0:00:03]} 23. e4 {[%emt 0:02:43]} a4 {[%emt 0:00:51]} 24. Kf1 {[%emt 0:00:17]} a3 {[%emt 0:03:46]} 25. Ra1 {[%emt 0:00:03]} Rd8 {[%emt 0:00:37]} 26. Ke2 {[%emt 0:00:18]} Rd4 {[%emt 0:00:05]} 27. f3 {[%emt 0:01:18]} Rc4 {[%emt 0:01:01]} 28. Ra2 {[%emt 0:00:17]} Kf8 {[%emt 0:00:01]} 29. Kd1 {[%emt 0:02:06]} Rc3 {[%emt 0:00:40]} 30. Ke2 {[%emt 0:01:10]} c5 {[%emt 0:00:00]} 31. Be3 {[%emt 0:01:07]} Rb3 {[%emt 0:00:24]} 32. Bc1 {[%emt 0:00:21]} c4 {[%emt 0:00:01]} 33. f4 {[%emt 0:01:05]} c3 {[%emt 0:01:51]} 34. Kd3 {[%emt 0:00:13]} Rb2 {[%emt 0:00:02]} 35. Ra1 {[%emt 0:00:29]} c2 {[%emt 0:00:01]} 36. Bxb2 {[%emt 0:00:03]} axb2 {[%emt 0:00:04]} 37. Ra8+ {[%emt 0:00:01]} Ke7 {[%emt 0:00:09]} 38. Kxc2 {[%emt 0:00:01]} Bc3 {[%emt 0:00:01]} 1-0